Cogmind - Beta 14 @@@ ROGUE MODE // 2024.09.14 @ 23:45:00 Player: Dull Result: Destroyed by G-47 Trooper with Particle Gun Performance ------------- Evolutions (2) 1000 Regions Visited (8) 1600 Robots Destroyed (248) 1240 Value Destroyed (6482) 6482 Prototype IDs (30) 600 Alien Tech Used (0) 0 Bonus (2357) 2357 TOTAL SCORE: 13279 Bonus ------- High Alert Combat Kills 1466 Follower Combat Kills 395 Entered Garrisons 200 Used RIF Installer 500 Aligned with FarCom 300 Friendly Fire -504 Cogmind --------- Core Integrity 0/550 Matter 280/300 Energy 239/240 System Corruption 0% Temperature Cool (39) Movement Hovering (108) Ox1 Location -8/Garrison Parts ------- > --- POWER (1) -------- Nuclear Core > --- PROPULSION (4) --- Improved Hover Unit Improved Hover Unit Aerolev Unit > --- UTILITY (4) ------ Large Storage Unit ECM Suite Propulsion Shielding Relay Coupler [Grunt] (29) > --- WEAPON (2) ------- Improved Datajack Heavy Pick > --- INVENTORY (15) --- Nuclear Core Nuclear Core Hacking Suite Hacking Suite Hacking Suite Relay Coupler [Sentry] (19) Relay Coupler [Demolisher] (19) Relay Coupler [Hunter] (16) Relay Coupler [Hunter] (16) High-powered Tractor Beam Field Recycling Unit (0) Heavy Rocket Launcher Power Maul Heavy Pick Heavy Pick Peak State ------------ > --- POWER ------------ Nuclear Core > --- PROPULSION ------- Wheel Compact Wheel Compact Wheel > --- UTILITY ---------- Improved Heat Sink Huge Storage Unit Experimental Sensor Array Hacking Suite > --- WEAPON ----------- Firepult > --- INVENTORY -------- Light Deuterium Engine Nuclear Core Nuclear Core Improved Hover Unit Improved Hover Unit Improved Hover Unit Improved Hover Unit Improved Hover Unit Large Storage Unit Weight Redist. System Propulsion Shielding Propulsion Shielding Propulsion Shielding Hardened Light Armor Plating Hacking Suite Hacking Suite Hacking Suite Field Recycling Unit Field Laser Advanced Beam Cannon Rocket Launcher Rocket Launcher Katana Ripper [Rating: 47] Favorites ----------- Power Nuclear Core Engine Ion Engine Power Core Nuclear Core Propulsion Light Treads Treads Light Treads Leg Aluminum Leg Wheel Compact Wheel Hover Unit Improved Hover Unit Utility Huge Storage Unit Device Improved Heat Sink Storage Huge Storage Unit Hackware Hacking Suite Protection Light Armor Plating Weapon Light Cannon Energy Gun Field Laser Energy Cannon Advanced Beam Cannon Ballistic Gun Assault Rifle Ballistic Cannon Light Cannon Launcher Missile Launcher Impact Weapon Power Maul Slashing Weapon Ripper Piercing Weapon Heavy Pick Special Melee Weapon Improved Datajack Build | -11 -10 -10 -9 -9 -9 -8 -8 -8 ------- Run | Yrd Mat Min Mat Min Exi Min Mat Gar Slots Evolved 4 | . . . 2 . . . 2 . Power . | . . . . . . . . . Propulsion 2 | . . . 1 . . . 1 . Utility 2 | . . . 1 . . . 1 . Weapon . | . . . . . . . . . Parts Attached 123 | . 9 8 35 4 1 7 46 13 Power 19 | . 1 4 6 . . . 8 . Engine 15 | . 1 4 4 . . . 6 . Core 4 | . . . 2 . . . 2 . Reactor . | . . . . . . . . . Propulsion 38 | . 2 . 12 . . 4 18 2 Treads 27 | . 2 . 12 . . . 13 . Leg . | . . . . . . . . . Wheel 4 | . . . . . . 4 . . Hover 7 | . . . . . . . 5 2 Flight . | . . . . . . . . . Utility 35 | . 2 4 8 4 . 3 11 3 Device 10 | . . . 2 . . 3 4 1 Storage 6 | . 1 2 1 . . . 2 . Processor . | . . . . . . . . . Hackware 3 | . . . . 2 . . . 1 Protection 16 | . 1 2 5 2 . . 5 1 Artifact . | . . . . . . . . . Weapon 31 | . 4 . 9 . 1 . 9 8 Energy Gun 2 | . . . 2 . . . . . Energy Cannon 4 | . 1 . 2 . 1 . . . Ballistic Gun 2 | . 1 . 1 . . . . . Ballistic Cannon 6 | . 2 . 4 . . . . . Launcher 10 | . . . . . . . 7 3 Special Weapon . | . . . . . . . . . Impact Weapon 1 | . . . . . . . 1 . Slashing Weapon 3 | . . . . . . . 1 2 Piercing Weapon 2 | . . . . . . . . 2 Special Melee Weapon 1 | . . . . . . . . 1 Unidentified Prototypes 5 | . . . 2 . . . 3 . Parts Lost 21 | . . 3 2 . . 3 8 5 Power 1 | . . 1 . . . . . . Propulsion 10 | . . . 1 . . 3 3 3 Utility 6 | . . 2 1 . . . 2 1 Weapon 4 | . . . . . . . 3 1 Highest Loss Streak 2 | . . 1 1 . . 2 2 2 To Critical Strikes . | . . . . . . . . . Average Slot Usage (%) 95 | . 94 99 99 100 94 83 87 97 Engine 6 | . 14 13 8 . . . 7 . Core 3 | . . . 2 11 11 11 1 9 Treads 27 | . 22 28 32 33 33 9 29 . Wheel 1 | . . . . . . 18 1 . Hover 2 | . . . . . . . 1 34 Device 5 | . . . 11 4 . 9 3 9 Storage 10 | . 14 14 11 11 11 11 8 9 Hackware 5 | . . . . 13 22 12 8 . Protection 9 | . 9 14 10 4 . . 12 17 Energy Gun 1 | . 3 . . 11 5 . . . Energy Cannon 7 | . 11 14 10 . 5 11 5 . Ballistic Cannon 7 | . 10 14 10 11 5 . . . Launcher 1 | . . . . . . . 6 5 Peak Build Rating 47 | . 9 12 26 24 40 40 47 32 Average Rating 25 | . 7 9 22 22 31 38 37 28 On Entrance 20 | 6 6 9 11 21 24 40 39 31 Naked Turns . | . . . . . . . . . Heaviest Build 122 | 13 34 54 98 99 109 110 122 45 Greatest Support 83 | 20 40 40 68 63 63 63 83 29 Greatest Overweight (x) 36 | . . 1 2 1 1 36 3 2 Average Overweight (x) . | . . . . 1 1 2 1 1 Largest Inventory Capacity 25 | . 15 20 25 25 25 25 25 15 Average Capacity 22 | . 12 19 24 25 25 25 24 15 Most Carried 25 | . 15 19 25 25 25 25 25 15 Average Carried 21 | . 9 17 23 24 25 24 23 14 Final Capacity 25 | 8 15 20 25 25 25 25 15 15 Final Carried 25 | 6 15 18 25 25 25 25 15 15 Class Distribution -------------------- 61% | Mutant 25% | Scavenger-Mutant 12% | Hacker-Mutant Dominant Class ---------------- Mutant | -10/Materials Mutant | -10/Mines Mutant | -9/Materials Hacker-Mutant | -9/Mines Hacker-Mutant | -9/Exiles Scavenger-Mutant | -8/Mines Scavenger-Mutant | -8/Materials Mutant | -8/Garrison Resources | -11 -10 -10 -9 -9 -9 -8 -8 -8 ----------- Run | Yrd Mat Min Mat Min Exi Min Mat Gar Matter Collected 3766 | 200 261 270 1136 208 10 101 1228 352 Remotely 145 | . . . . . . . 145 . Salvage Created 7478 | . 566 441 2679 318 . 469 2503 502 Parts 440 | . 41 20 199 28 . 24 98 30 Haulers Intercepted 13 | . 2 . 5 . . . 6 . Recyclers Shooed 10 | . 1 3 3 1 . . 2 . Parts Field Recycled . | . . . . . . . . . Retrieved Matter . | . . . . . . . . . Parts Self-Destructed . | . . . . . . . . . Prevented . | . . . . . . . . . Kills | -11 -10 -10 -9 -9 -9 -8 -8 -8 ------- Run | Yrd Mat Min Mat Min Exi Min Mat Gar Combat Hostiles Destroyed 168 | . 15 11 50 14 . 6 52 20 Melee 9 | . . . . . . . . 9 Guns 15 | . 6 . . 9 . . . . Cannons 83 | . 9 11 50 5 . 2 6 . AOE 49 | . . . . . . 2 36 11 Classes Destroyed 17 | . 8 1 5 . . . 3 . Worker 27 | . . . 16 2 . 3 6 . Builder 14 | . 1 . 8 1 . . 4 . Tunneler 9 | . 1 1 1 1 . 2 3 . Hauler 13 | . 2 . 5 . . . 6 . Recycler 10 | . 1 3 2 . . 1 3 . Mechanic 1 | . . . . . . . 1 . Operator 6 | . 2 . 3 . . . 1 . Watcher 12 | . 2 . 5 . . . 5 . Swarmer 48 | . 9 3 7 12 . . 11 6 Grunt 80 | . 6 2 29 2 . 6 24 11 Brawler 3 | . . . 2 . . . 1 . Duelist 2 | . . . 1 . . . 1 . Protector 4 | . . . 3 . . . 1 . Sentry 23 | . . . 8 . . . 12 3 Hunter 2 | . . . . . . . 1 1 Heavy 1 | . . . . . . . 1 . Assembled 6 | . . 6 . . . . . . Best Kill Streak 13 | . 6 4 8 5 . 4 13 4 Combat Bots Only 10 | . 6 3 5 5 . 3 10 4 Max Kills in Single Turn 4 | . 2 2 2 1 . 2 4 3 Gunslinging . | . . . . . . . . . Exploded 3 | . . . . . . 1 2 3 Melee 1 | . . . . . . . . 1 Uniques/NPCs Destroyed . | . . . . . . . . . Combat | -11 -10 -10 -9 -9 -9 -8 -8 -8 -------- Run | Yrd Mat Min Mat Min Exi Min Mat Gar Hostile Shots Fired 585 | . 76 45 194 63 . 19 142 46 Missed 177 | . 23 16 53 14 . 8 47 16 Damage Taken 6304 | . 474 411 1870 399 . 426 2078 646 Core 1070 | . 70 67 182 67 . 126 393 165 Absorbed by Shields 24 | . . . . . . . 20 4 Redirected to Shielding 116 | . . . 30 . . . . 86 Ignored by Resistances 57 | . . . . . . . 57 . Regen/Repaired (Parts) 262 | . . . 262 . . . . . Core Remaining (%) 50 | 100 . 45 . . . 6 . . Volleys Fired 437 | . 54 42 204 37 . 10 79 11 Largest 2 | . 2 2 2 2 . 1 2 2 Hottest 250 | . 95 95 103 98 . 250 250 78 Shots Fired 798 | . 104 86 408 74 . 10 98 18 Gun 67 | . 30 . . 37 . . . . Cannon 655 | . 74 86 408 37 . 10 40 . Launcher 76 | . . . . . . . 58 18 Special . | . . . . . . . . . Kinetic 329 | . 45 43 204 37 . . . . Thermal 393 | . 59 43 204 37 . 10 40 . Explosive 76 | . . . . . . . 58 18 Electromagnetic . | . . . . . . . . . Robot Hit Streak 14 | . 9 9 14 6 . 4 8 2 Robot Miss Streak 8 | . 8 4 6 4 . 4 5 3 Penetration Max . | . . . . . . . . . Secondary Targets 1 | . 1 . . . . . . . Max Gunslinging Chain 1 | . 1 . . . . . . . Shots Hit Robots 468 | . 58 53 225 36 . 10 69 17 Core Hits 359 | . 24 23 108 19 . 17 138 30 Critical Kills 1 | . . . 1 . . . . . Critical Parts Destroyed . | . . . . . . . . . Critical Strikes 18 | . 4 2 8 4 . . . . Burn 6 | . 4 . . 2 . . . . Meltdown 1 | . . . 1 . . . . . Blast 11 | . . 2 7 2 . . . . Melee Attacks 29 | . . . . . . . 3 26 Impact 4 | . . . . . . . 3 1 Slashing 21 | . . . . . . . . 21 Piercing 4 | . . . . . . . . 4 Sneak Attacks . | . . . . . . . . . Combat Hostiles . | . . . . . . . . . Follow-up Attacks 1 | . . . . . . . . 1 Damage Inflicted 16313 | . 1007 964 4551 629 . 758 5718 2686 Guns 549 | . 177 . . 372 . . . . Cannons 7475 | . 830 964 4496 257 . 255 673 . Explosions 7781 | . . . 55 . . 503 5014 2209 Melee 477 | . . . . . . . . 477 Ramming 31 | . . . . . . . 31 . Kinetic 2956 | . 444 453 1802 257 . . . . Thermal 7697 | . 563 511 2749 372 . 758 2744 . Explosive 5152 | . . . . . . . 2943 2209 Electromagnetic . | . . . . . . . . . Impact 67 | . . . . . . . . 67 Slashing 410 | . . . . . . . . 410 Piercing . | . . . . . . . . . Highest Corruption 5 | . . 5 . . . . . . Average Corruption 5 | . . 5 . . . . . . Corruption Purged . | . . . . . . . . . Corruption Blocked . | . . . . . . . . . Effects 9 | . . 9 . . . . . . Matter Fused 2 | . . 2 . . . . . . Data Loss (minor) 5 | . . 5 . . . . . . Misfires 2 | . . 2 . . . . . . Overload Shots . | . . . . . . . . . Overflow Damage 267 | . 5 14 24 . . 1 92 131 Projectiles 55 | . 5 14 24 . . 1 11 . Explosions 185 | . . . . . . . 81 104 Melee 27 | . . . . . . . . 27 Knockbacks 33 | . 3 10 15 5 . . . . Impact . | . . . . . . . . . Kinetic 29 | . 3 9 13 4 . . . . Secondary 4 | . . 1 2 1 . . . . Self-Inflicted Damage 994 | . . . 98 . . 227 514 155 Shots 58 | . . . 1 . . 18 38 1 Rammed 4 | . . . . . . . 4 . Targets Rammed 4 | . . . . . . . 4 . Kicked . | . . . . . . . . . Crushed . | . . . . . . . . . Highest Temperature 618 | . 363 288 168 363 . 465 618 108 Average Temperature 119 | . 103 97 32 120 . 194 164 34 Received Heat Transfer 1991 | . 78 150 777 9 . 117 590 270 Effects 28 | . 3 . . 2 . 4 19 . Shutdowns 6 | . 1 . . . . 1 4 . Energy Bleed 4 | . 2 . . 2 . . . . Interference 2 | . . . . . . . 2 . Matter Decay 2 | . . . . . . 1 1 . Short Circuit 2 | . . . . . . 1 1 . Damage (minor) 3 | . . . . . . 1 2 . Damage (major) 8 | . . . . . . . 8 . Damage (core) 1 | . . . . . . . 1 . Siege Activations . | . . . . . . . . . Robots Corrupted . | . . . . . . . . . Combat Hostiles . | . . . . . . . . . Parts Fried . | . . . . . . . . . Impact Corruptions 1 | . . . . . . . . 1 Robots Melted 14 | . . . 1 . . 2 11 . Combat Hostiles 12 | . . . . . . 2 10 . Parts Melted 88 | . 3 . 7 2 . 11 65 . Heat Transferred 26144 | . 1530 1073 4849 962 . 3680 14050 . Parts Sabotaged . | . . . . . . . . . Parts Stolen . | . . . . . . . . . Parts Stripped . | . . . . . . . . . Power Chain Reactions . | . . . . . . . . . Alert | -11 -10 -10 -9 -9 -9 -8 -8 -8 ------- Run | Yrd Mat Min Mat Min Exi Min Mat Gar Peak Influence 1865 | . 329 135 1077 467 . 206 1386 1865 Initial 891 | . . 70 5 417 . . . 891 Average 480 | . 194 41 615 283 . 44 559 1463 Maximum Alert Level 5 | . 1 . 3 2 . 1 4 5 Low Security (%) 36 | . 51 100 9 23 . 97 40 . Level 1 24 | . 48 . 28 56 . 2 14 . Level 2 11 | . . . 24 20 . . 5 . Level 3 17 | . . . 37 . . . 15 20 Level 4 8 | . . . . . . . 23 44 Level 5 2 | . . . . . . . . 35 High Security . | . . . . . . . . . Max Security . | . . . . . . . . . Sterilizations 2 | . . . 1 . . . 1 . Squads Dispatched 20 | . 4 1 6 . . . 9 . Investigation 3 | . 2 . 1 . . . . . Extermination . | . . . . . . . . . Reinforcement 8 | . 2 . 2 . . . 4 . Assault 6 | . . 1 3 . . . 2 . Garrison 3 | . . . . . . . 3 . Intercept . | . . . . . . . . . Searches Triggered . | . . . . . . . . . Construction Impeded 1 | . . . . . . . 1 . Haulers Reinforced . | . . . . . . . . . Active Scanning Responses . | . . . . . . . . . Cargo Convoy Interrupts . | . . . . . . . . . Stealth | -11 -10 -10 -9 -9 -9 -8 -8 -8 --------- Run | Yrd Mat Min Mat Min Exi Min Mat Gar Distress Signals 6 | . 3 . 1 . . . 2 . Communications Jammed . | . . . . . . . . . Distress Signals . | . . . . . . . . . Times Spotted 246 | . 29 23 74 18 . 6 68 28 Peak Tracking Total 7 | . 7 7 5 6 . 3 6 5 Tactical Retreats 14 | . 2 2 1 4 . . 3 2 Traps | -11 -10 -10 -9 -9 -9 -8 -8 -8 ------- Run | Yrd Mat Min Mat Min Exi Min Mat Gar Traps Triggered 17 | . 2 . 1 . . . . 14 Indirectly . | . . . . . . . . . Trap Hack Attempts . | . . . . . . . . . Triggered . | . . . . . . . . . Disarmed . | . . . . . . . . . Reprogrammed . | . . . . . . . . . Reused . | . . . . . . . . . Traps Extracted . | . . . . . . . . . Installed . | . . . . . . . . . Triggered . | . . . . . . . . . Machines | -11 -10 -10 -9 -9 -9 -8 -8 -8 ---------- Run | Yrd Mat Min Mat Min Exi Min Mat Gar Machines Disabled 31 | . 1 . 11 1 . 1 10 7 Max in Single Turn 3 | . 1 . 3 1 . 1 2 2 Garrison Relay 2 | . . . . . . . . 2 Phase Generator 1 | . . . . . . . . 1 Machines Repaired . | . . . . . . . . . Machines Dismantled . | . . . . . . . . . Machines Sabotaged . | . . . . . . . . . Overloaded Fab Kills . | . . . . . . . . . Hacking | -11 -10 -10 -9 -9 -9 -8 -8 -8 --------- Run | Yrd Mat Min Mat Min Exi Min Mat Gar Machines Accessed 31 | . 7 . 10 . 3 1 8 2 Terminals 17 | . 5 . 5 . . 1 4 2 Fabricators . | . . . . . . . . . Repair Stations 3 | . . . 2 . . . 1 . Recycling Units 4 | . 2 . 1 . . . 1 . Scanalyzers 3 | . . . 2 . . . 1 . Garrison Access 1 | . . . . . . . 1 . Total Hacks 76 | . 18 . 27 . 3 8 15 5 Successful 45 | . 8 . 18 . 3 4 11 1 Failed 28 | . 9 . 8 . . 3 4 4 Catastrophic 4 | . 3 . . . . . . 1 Database Lockouts 3 | . 1 . 1 . . 1 . . Manual 41 | . 15 . 9 2 1 7 7 . Terminals 45 | . 13 . 12 . . 8 7 5 Fabricators . | . . . . . . . . . Repair Stations 7 | . . . 6 . . . 1 . Recycling Units 11 | . 5 . 4 . . . 2 . Scanalyzers 7 | . . . 5 . . . 2 . Garrison Access 3 | . . . . . . . 3 . Terminal Hacks 25 | . 5 . 6 . 3 4 6 1 Record 4 | . . . 1 . 2 1 . . Part Schematic 2 | . 1 . 1 . . . . . Robot Analysis 9 | . 2 . 2 . . 3 2 . Prototype ID Bank 1 | . 1 . . . . . . . Open Door 1 | . . . . . . . . 1 Branch Access Points 2 | . . . 1 . . . 1 . Emergency Access Points 1 | . . . . . . . 1 . Alert Level 2 | . 1 . . . . . 1 . Unreport Threat 1 | . . . . . . . 1 . Locate Traps 1 | . . . 1 . . . . . Derelict Proto ID Bank 1 | . . . . . 1 . . . Fabricator Hacks . | . . . . . . . . . Repair Station Hacks 6 | . . . 6 . . . . . Scan Component 3 | . . . 3 . . . . . Repair 3 | . . . 3 . . . . . Recycling Unit Hacks . | . . . . . . . . . Scanalyzer 6 | . . . 4 . . . 2 . Insert Component 3 | . . . 2 . . . 1 . Analyze 3 | . . . 2 . . . 1 . Garrison Access Hacks 1 | . . . . . . . 1 . Unlock Access 1 | . . . . . . . 1 . Unauthorized Hacks 7 | . 3 . 2 . . . 2 . Terminals . | . . . . . . . . . Fabricators . | . . . . . . . . . Repair Stations . | . . . . . . . . . Recycling Units 7 | . 3 . 2 . . . 2 . Reject 3 | . 1 . 1 . . . 1 . Mask 4 | . 2 . 1 . . . 1 . Scanalyzers . | . . . . . . . . . Garrison Access . | . . . . . . . . . Data Cores Recovered 1 | . . . 1 . . . . . Used . | . . . . . . . . . Hacking Detections 16 | . 3 . 5 1 . 1 4 2 Full Trace Events 4 | . 1 . 2 . . . . 1 Feedback Events . | . . . . . . . . . Feedback Blocked . | . . . . . . . . . Robot Schematics Acquired . | . . . . . . . . . Robots Built . | . . . . . . . . . Authchips . | . . . . . . . . . Time . | . . . . . . . . . Total Robot Build Rating . | . . . . . . . . . Part Schematics Acquired 5 | . 1 . 3 . . . 1 . Parts Built . | . . . . . . . . . Authchips . | . . . . . . . . . Time . | . . . . . . . . . Total Part Build Rating . | . . . . . . . . . Parts Repaired 3 | . . . 3 . . . . . Time 90 | . . . 90 . . . . . Parts Recycled . | . . . . . . . . . Recycled Matter . | . . . . . . . . . Retrieved Matter . | . . . . . . . . . Retrieved Components . | . . . . . . . . . Parts Scanalyzed 3 | . . . 2 . . . 1 . Part Schematics Acquired 3 | . . . 2 . . . 1 . Parts Damaged . | . . . . . . . . . Bothacking | -11 -10 -10 -9 -9 -9 -8 -8 -8 ------------ Run | Yrd Mat Min Mat Min Exi Min Mat Gar Used RIF Installer 1 | . . . . . . . . 1 Robots Hacked . | . . . . . . . . . Non-combat . | . . . . . . . . . Combat . | . . . . . . . . . Robot Hacks Applied . | . . . . . . . . . Relay Couplers Released 8 | . . . . . . . . 8 Machine Destruction 8 | . . . . . . . . 8 Attached 1 | . . . . . . . . 1 Fabnet Peak Effective % . | . . . . . . . . . Robots Rewired 3 | . . . . . . . . 3 Allies Hacked . | . . . . . . . . . Hacks Repelled . | . . . . . . . . . Allies | -11 -10 -10 -9 -9 -9 -8 -8 -8 -------- Run | Yrd Mat Min Mat Min Exi Min Mat Gar Total Allies 5 | . . 1 . . . . . 4 Largest Group 3 | . . 1 1 . . . . 3 Highest-Rated Group 63 | . . 31 31 . . . . 63 Highest-Rated Ally 39 | . . 31 31 . . . . 39 Total Orders . | . . . . . . . . . Ally Attacks 63 | . . 15 6 . . . . 42 Total Damage 1060 | . . 231 102 . . . . 727 Kills 15 | . . 4 3 . . . . 8 Allies Corrupted . | . . . . . . . . . Allies Melted . | . . . . . . . . . Intel | -11 -10 -10 -9 -9 -9 -8 -8 -8 ------- Run | Yrd Mat Min Mat Min Exi Min Mat Gar Robot Analysis Total 7 | . 2 . 2 . . 3 . . Derelict Logs Recovered 2 | . . 1 . 1 . . . . Drone Launches . | . . . . . . . . . Drone Recoveries . | . . . . . . . . . Exploration | -11 -10 -10 -9 -9 -9 -8 -8 -8 ------------- Run | Yrd Mat Min Mat Min Exi Min Mat Gar Turns Passed 17430 | . 1250 1865 5371 2343 579 907 4123 992 Spaces Moved 7474 | 1 683 677 2126 908 241 523 1675 640 Core 9 | . . . . . . 1 8 . Treads 5882 | . 537 677 2126 908 241 102 1291 . Legs 147 | 1 146 . . . . . . . Wheels 646 | . . . . . . 420 226 . Hover 790 | . . . . . . . 150 640 Flight . | . . . . . . . . . Fastest Speed 48 | 120 120 160 145 240 240 123 48 105 Average Speed 201 | 120 151 235 211 240 240 164 217 107 Slowest Speed 1850 | 120 160 240 312 240 240 1850 325 172 Overloaded Moves . | . . . . . . . . . Propulsion Burnouts . | . . . . . . . . . Robots Hopped . | . . . . . . . . . Cave-ins Triggered . | . . . . . . . . . Exploration Rate (%) 78 | 2 98 97 92 100 61 100 94 64 Regions Visited 8 Branch Regions 4 Pre-discovered Areas 3 | . . . . 2 1 . . . Known Exits Taken 2 | . . . 1 . . . 1 . Unknown Exits Taken 6 | 1 1 1 . 1 1 1 . . Scrap Searched 6 | . . 1 . 3 . 2 . . Spaces Dug 71 | . . . . . . . 70 1 Terrain Destroyed 872 | . . . 30 16 . 51 603 172 Melee 4 | . . . . . . . 3 1 Projectile 22 | . . . . . . 3 19 . AOE 846 | . . . 30 16 . 48 581 171 Terrain Rammed . | . . . . . . . . . Walls Destroyed . | . . . . . . . . . Machines Disabled . | . . . . . . . . . Actions | -11 -10 -10 -9 -9 -9 -8 -8 -8 --------- Run | Yrd Mat Min Mat Min Exi Min Mat Gar Total 8992 | . 796 868 2596 1002 243 560 2041 886 Wait 593 | . 24 127 176 42 . 18 166 40 Move 7466 | . 682 676 2125 907 240 522 1674 640 Hop . | . . . . . . . . . Pick Up 92 | . 17 8 25 5 . 1 28 8 Fast Attach 29 | . . 1 6 . 1 3 17 1 Attach 19 | . 1 3 4 . . . 7 4 Detach 3 | . . . . . . . 3 . Swap 75 | . 8 4 25 4 . 4 22 8 Drop 102 | . 10 7 31 7 2 2 38 5 Fire 437 | . 54 42 204 37 . 10 79 11 Melee 28 | . . . . . . . 3 25 Ram 1 | . . . . . . . 1 . Kick . | . . . . . . . . . Crush 3 | . . . . . . . 3 . Escape Stasis 116 | . . . . . . . . 116 Rewire 28 | . . . . . . . . 28 Trap . | . . . . . . . . . Miscellaneous . | . . . . . . . . . Route ------- -11/Scrapyard -10/Materials (discovered 5 exits: *Mat x3 / [*Min x2]) -10/Mines (discovered 3 exits: *Mat x2 / [*Sub]) -9/Materials (discovered 5 exits: *Mat x3 / *Min x2) -9/Mines (discovered 3 exits: *Mat x2 / *Exi) -9/Exiles -8/Mines (discovered 2 exits: *Mat x2) -8/Materials (discovered 4 exits: [*Fac x3] / Gar) -8/Garrison (discovered 2 exits: [*Mat x2]) History --------- Turn | Location | Event 1 | -11/Scrapyard | Discovered new exit (range 0) 1 | -11/Scrapyard | Entered Materials 217 | -10/Materials | Discovered new exit (range 9) 315 | -10/Materials | Build established: Mutant 372 | -10/Materials | Discovered new exit (range 6) 433 | -10/Materials | Discovered new exit (range 10) 605 | -10/Materials | Discovered new exit (range 11) 922 | -10/Materials | Central database locked down 932 | -10/Materials | Discovered new exit (range 13) 1251 | -10/Materials | Entered Mines 1275 | -10/Mines | A weapon hastily lodged in a ceiling crevice suddenly fell to the ground 1306 | -10/Mines | Discovered new exit (range 10) 1567 | -10/Mines | Discovered new exit (range 5) 1603 | -10/Mines | Learned location of 1 exit from Materials 1791 | -10/Mines | Assembled infested the area 1796 | -10/Mines | Assisted by a Guerilla fighting off Assembled 2449 | -10/Mines | Discovered new exit (range 7) 2500 | -10/Mines | Found a hidden stash of uninstalled traps 2723 | -10/Mines | Met a Derelict testing a Signal Generator 2801 | -10/Mines | Core integrity fell below 50% 3116 | -10/Mines | Entered Materials 3116 | -9/Materials | Accompanied by 1 ally 3116 | -9/Materials | Evolved 2 slots: Propulsion x1, Utility x1 3117 | -9/Materials | Identified exit to Mines 3130 | -9/Materials | Central database locked down 3212 | -9/Materials | Repaired Lgt. Treads 4090 | -9/Materials | Discovered new exit (range 7) 4817 | -9/Materials | Discovered new exit (range 9) 5612 | -9/Materials | Discovered new exit (range 16) 5767 | -9/Materials | Repaired Adv. Treads 5795 | -9/Materials | Repaired Lgt. Cannon 6316 | -9/Materials | First assault squad dispatched 7980 | -9/Materials | Sterilization system engaged 7980 | -9/Materials | Non-combat units ordered to evacuate 8080 | -9/Materials | Combat units ordered to evacuate 8280 | -9/Materials | Ambient heat levels rising (+10) 8430 | -9/Materials | Ambient heat levels rising (+10) 8445 | -9/Materials | Build established: Scavenger-Mutant 8487 | -9/Materials | Entered Mines 8528 | -9/Mines | Learned location of Storage (-7) 8874 | -9/Mines | YI-UF0 nonchalantly dropped a Grenade Launcher on the ground 9041 | -9/Mines | Found a damaged Exp. Sensor Array with a note attached 9127 | -9/Mines | Joined a pair of Derelicts in attacking an 0b10 outpost 9467 | -9/Mines | Discovered new exit (range 4) 9568 | -9/Mines | Core integrity fell below 50% 9716 | -9/Mines | Build established: Hacker-Mutant 9950 | -9/Mines | Discovered new exit (range 7) 10691 | -9/Mines | Found Prototype Device 10771 | -9/Mines | Deemed a non-threat by the Exiles lab entrance 10771 | -9/Mines | Discovered new exit (range 5) 10830 | -9/Mines | Entered Exiles 10893 | -9/Exiles | Met 8R-AWN 10931 | -9/Exiles | Met EX-HEX 11006 | -9/Exiles | Met EX-BIN 11034 | -9/Exiles | Aligned with FarCom system 11037 | -9/Exiles | Given EX-Vault access code 11121 | -9/Exiles | Opened EX-Vault 11136 | -9/Exiles | Found Firepult 11188 | -9/Exiles | Warned to stay clear of 0b10 Research branches 11255 | -9/Exiles | Met EX-DEC 11270 | -9/Exiles | Learned location of Zion (-6) 11383 | -9/Exiles | Discovered new exit (range 14) 11409 | -9/Exiles | Left Exiles lab with Firepult 11409 | -9/Exiles | Entered Mines 11414 | -8/Mines | Central database locked down 11535 | -8/Mines | Discovered new exit (range 9) 11729 | -8/Mines | Core integrity fell below 20% 11871 | -8/Mines | Discovered new exit (range 5) 12097 | -8/Mines | Build established: Scavenger-Mutant 12316 | -8/Mines | Entered Materials 12316 | -8/Materials | Evolved 2 slots: Propulsion x1, Utility x1 12321 | -8/Materials | Identified Exp. Sensor Array 13844 | -8/Materials | Discovered new exit (range 16) 13966 | -8/Materials | Build established: Mutant 14176 | -8/Materials | Garrison activated, responded to threat 14253 | -8/Materials | Destroyed 10 combat bots 14606 | -8/Materials | Identified exit to Garrison 15029 | -8/Materials | Build established: Scavenger-Mutant 15055 | -8/Materials | Core integrity fell below 50% 15155 | -8/Materials | Discovered new exit (range 3) 15516 | -8/Materials | First assault squad dispatched 15953 | -8/Materials | Discovered new exit (range 15) 15979 | -8/Materials | Sterilization system engaged 15979 | -8/Materials | Non-combat units ordered to evacuate 15986 | -8/Materials | Destroyed 7 combat bots 16079 | -8/Materials | Combat units ordered to evacuate 16279 | -8/Materials | Ambient heat levels rising (+10) 16429 | -8/Materials | Ambient heat levels rising (+10) 16439 | -8/Materials | Entered Garrison 16471 | -8/Garrison | Rescued a captive Derelict 16497 | -8/Garrison | Triggered checkpoint 16503 | -8/Garrison | Build established: Mutant 16535 | -8/Garrison | Garrison Relay disabled 16642 | -8/Garrison | Triggered checkpoint 16673 | -8/Garrison | Triggered checkpoint 16695 | -8/Garrison | Triggered checkpoint 16820 | -8/Garrison | Triggered checkpoint 16825 | -8/Garrison | Core integrity fell below 20% 16913 | -8/Garrison | Triggered checkpoint 16919 | -8/Garrison | Triggered checkpoint 16970 | -8/Garrison | Garrison Relay disabled 17013 | -8/Garrison | Triggered checkpoint 17103 | -8/Garrison | Installed Relay Interface Framework 17191 | -8/Garrison | Triggered checkpoint 17217 | -8/Garrison | Discovered new exit (range 14) 17340 | -8/Garrison | Phase Generator disabled 17426 | -8/Garrison | Discovered new exit (range 14) 17429 | -8/Garrison | Triggered checkpoint 17431 | -8/Garrison | Destroyed by G-47 Trooper with Particle Gun Last Messages --------------- 17268_ Field strength at 23. 17269_ Field strength at 16. 17270_ Field strength at 9. 17271_ Field strength at 2. 17272_ Stasis field depleted. 17340_ Phase Generator explodes. 17340_ Propulsion Shielding destroyed. 17340_ Imp. Hover Unit destroyed. 17340_ Destroyed Imp. Hover Unit. 17340_ Commando 3b destroyed. 17340_ Destroyed Lgt. Nuclear Core. 17340_ Machine disabled. 17343_ The unstable cave ceiling collapses. 17355_ Acquired Imp. Datajack. 17357_ Acquired Hvy. Pick. 17358_ Dropped Hvy. Rocket Launcher. 17358_ Acquired Hvy. Rocket Launcher. 17426_ EXIT=FOUND 17429_ Beams of light sweep through the air. An alarm sounds. 17431_ Critical hit (Burn: +37). Map ----- +----------------------------------------------------+ | ???????????????????????????????????????????????? | | ???????????????????????????????????????????????? | | ???????????????????????????????????????????????? | | ?? ???????????????????????????????????????????? | | ?? ???????????????????????????????????????????? | | ?? ??????????????????? ??????????????????????? | | ?# ??????????????????# ??????????????????????? | | ?# ??????????????#??? ??????????????????????? | | ?# ?????????????? ???< #?????????????????????? | | ?# ?????????????? ??? #?????????????????????? | | ?# #????????????? ???# #?????????????????????? | | ?# #????????????? ???# ##????????????????????? | | ?# #????????????# #??# ?????????????????????? | | ?# #????????????# #??# ?????????????????????? | | ?# #????????????# #??# #?????????????????????? | | ?# #????????????# #??# #?????????????????????? | | ?# #????????????# #??# #?????????????????????? | | ?# #????????????# #??# #?????????????????????? | | ?# ############## #### #?????????????????????? | | ?# #?????????????????????? | | ?# #?????????????????????? | | ?# ################### #?????????????????????? | | ?# #??????????????#### ###########???????????? | | ?# #??????????????# #???????????? | | ?# #??????????????# Y #???????????? | | ?# #??????????????## ###@ ### #???????????? | | ## #???????????????# ??#gg #???????????? | | ## #???????????????#???######## #???????????? | | ## ##???????????????????????????? #???????????? | | ##????????????????????????????????????????? | | ##???????????????????????????????????????? | | #???????????????????????????????????????? | | #???????????????????????????????????????? | | ###???????????????????????????????????????? | | #???????????????????????????????????????? | | #?????????????????????????????####??????? | | ####?????????????????????##### # ###????? | | #????????????????????## # ##???? | | ## #### #????????????????????# ##??? | | # # ## #???????????????????## # #??? | | ### ##################### ##?? | | #?? | | ###### ############# ##### #?? | | # #??# #??????????## ##?# #?? | | # ##??# #??????????#! #?# # ##?? | | ## ##???# #??????????#! /#?# #??? | | ?# #????# #??????????#! /#?# # #??? | | ?# #????# #??????????#! /#?# #??? | | ?# ###### #??????????## ##?## ##??? | | ?# #??????????? #???## ##???? | +----------------------------------------------------+ Best States ------------- Heat Dissipation 45 Energy Generation 14 Energy Capacity 280 Matter Stores 300 Matter Capacity 300 Sight Range 16 Terrain Scan Density 10 ECM Strength 1 Armor Coverage 375 Resistance: KI 20 Propulsion Shielding 33 Evasion (%) 55 Recoil Reduction 4 Particle Charging 15 Offensive Hacking 20 Relay Coupler Types 1 Relay Coupler Value 29 Item Schematics ----------------- Huge Storage Unit | -10/Materials | Hacked Lrg. Storage Unit | -9/Materials | Hacked Imp. Hover Unit | -9/Materials | Scanalyzed Ripper | -9/Materials | Scanalyzed Aerolev Unit | -8/Materials | Scanalyzed Robot Schematics ------------------ None Fabricated ------------ Nothing Alien Tech Used ----------------- None Achievements -------------- None Challenges ------------ None Game ------ Seed TeslaPiercingShearcannon Manual? 0 Play Time 01:32:34 Cumulative 80.6 hours Start 2024.09.14 @ 21:44:44 End 2024.09.14 @ 23:45:00 Sessions 1 Manual Loads 0 Difficulty Rogue Special Mode None Game No. 111 Rogue 111 Adventurer 0 Explorer 0 Win Type - Total 1 Types 1/0/0/0/0/0/0/0/0 Lore% 17 Gallery% 55 Achievement% 43 Wizard Run 0 Options --------- Layout 0 ASCII 0 Keyboard 0 Movement Mouse Keybinds 1 Fullscreen 1 Font 18/TerminusBold Map View 76x50 Zoom Use 0% Tactical HUD 1 Map Filters NONE Filters NONE Steam 1 RUN: 89e13e39-8fce-48c5-bb56-e3367792a75f